bitfinex/quotes_SOLUSD_20220212
["timestamp","ask_amount","ask_price","bid_price","bid_amount"]
[1644707811088,5.194,96.282,96.211,37.45713852]
[1644707811889,5.194,96.282,96.22,15.5836]
[1644707812088,1.46226272,96.287,96.22,15.5836]
[1644707812289,5.194,96.286,96.22,15.5836]
[1644707812689,1.71226272,96.285,96.22,15.5836]
[1644707812894,0.25,96.285,96.22,15.5836]
[1644707813490,5.194,96.284,96.22,15.5836]
[1644707813689,0.25,96.285,96.22,15.5836]
[1644707814691,1.46226272,96.283,96.22,15.5836]
[1644707815495,1.46226272,96.284,96.22,15.5836]
[1644707815793,1.71226272,96.285,96.22,15.5836]
[1644707815994,0.25,96.285,96.22,15.5836]
[1644707816596,1.46226272,96.284,96.221,5.194]
[1644707816796,0.25,96.285,96.221,5.194]
[1644707816797,1.46226272,96.285,96.221,5.194]
[1644707817096,5.194,96.284,96.22,15.5836]
[1644707817296,0.25,96.284,96.22,15.5836]
[1644707817500,1.46226272,96.283,96.22,15.5836]
[1644707817699,6.65626272,96.283,96.22,15.5836]
[1644707817898,1.46226272,96.282,96.22,15.5836]
[1644707818103,6.65626272,96.281,96.22,15.5836]
[1644707818297,1.46226272,96.28,96.22,15.5836]
[1644707818499,5.194,96.279,96.22,15.5836]
[1644707818700,1.46226272,96.28,96.22,15.5836]
[1644707820199,5.194,96.279,96.22,15.5836]
[1644707820899,1.46226272,96.281,96.22,15.5836]
[1644707821099,6.65626272,96.281,96.22,15.5836]
[1644707821299,1.46226272,96.282,96.22,15.5836]
[1644707821598,5.194,96.281,96.22,15.5836]
[1644707822201,6.65626272,96.281,96.22,15.5836]
[1644707822401,1.46226272,96.282,96.22,15.5836]
[1644707822604,5.194,96.281,96.22,15.5836]
[1644707823402,1.46226272,96.283,96.22,15.5836]
[1644707824104,0.25,96.284,96.22,15.5836]
[1644707824802,1.71226272,96.284,96.22,15.5836]
[1644707825301,0.25,96.284,96.22,15.5836]
[1644707825701,1.46226272,96.275,96.213,0.024]
[1644707825906,1.46226272,96.275,96.202,0.024]
[1644707826100,1.46226272,96.27,96.202,0.024]
[1644707826303,1.46226272,96.273,96.2,15.5862]
[1644707826504,1.46226272,96.273,96.201,23.6232]
[1644707826704,1.46226272,96.274,96.202,34.42496553]
[1644707827003,1.46226272,96.272,96.202,34.44896553]
[1644707827204,1.46226272,96.274,96.21,15.5857]
[1644707827404,1.46226272,96.278,96.21,15.5857]
[1644707828004,1.46226272,96.279,96.211,0.25]
[1644707828407,13.92226272,96.28,96.211,0.25]
[1644707828604,12.46,96.28,96.211,0.25]
[1644707829808,1.46226272,96.287,96.22,15.5842]
[1644707830009,1.46226272,96.3,96.22,15.5842]
[1644707830207,1.46226272,96.304,96.221,2.64790296]
[1644707830409,1.46226272,96.305,96.221,2.62390296]
[1644707830609,1.46226272,96.305,96.222,0.024]
[1644707830811,45.0204564,96.304,96.222,0.024]
[1644707831612,45.0204564,96.304,96.24,15.5809]
[1644707831912,45.0204564,96.304,96.241,47.911944]
[1644707832312,0.25,96.303,96.241,47.911944]
[1644707835119,0.25,96.303,96.222,0.024]
[1644707835120,2.62390296,96.302,96.222,0.024]
[1644707835317,1.46226272,96.295,96.22,15.5827]
[1644707835517,1.46226272,96.282,96.221,0.024]
[1644707835719,1.46226272,96.271,96.202,0.024]
[1644707835915,1.46226272,96.27,96.202,0.024]
[1644707836136,45.4809538,96.269,96.202,35.56795788]
[1644707836638,5.195,96.268,96.203,0.25]
[1644707836940,45.4809538,96.269,96.203,0.25]
[1644707837134,5.195,96.268,96.203,0.25]
[1644707837335,5.195,96.268,96.202,35.56795788]
[1644707837538,7.81890296,96.268,96.2,15.5862]
[1644707837737,1.46226272,96.258,96.191,0.25]
[1644707837938,12.46,96.25,96.192,0.024]
[1644707838138,1.46226272,96.248,96.171,0.024]
[1644707838338,1.46226272,96.244,96.155,0.024]
[1644707838537,1.46226272,96.244,96.124,24.40972408]
[1644707838538,12.46,96.23,96.15,0.024]
[1644707838738,12.46,96.23,96.14,38.57466724]
[1644707838739,1.46226272,96.225,96.14,38.59866724]
[1644707838945,40.59574044,96.229,96.141,0.024]
[1644707838946,1.46226272,96.223,96.141,0.024]
[1644707839346,1.46226272,96.223,96.141,0.274]
[1644707839549,5.198,96.222,96.141,0.274]
[1644707839744,1.46226272,96.227,96.17,15.5915]
[1644707839950,23.3372,96.228,96.17,15.5915]
[1644707839951,1.46226272,96.223,96.17,15.5915]
[1644707840246,1.46226272,96.224,96.17,15.5915]
[1644707840444,2.62390296,96.223,96.17,15.5915]
[1644707840643,5.197,96.222,96.17,15.5915]
[1644707841043,5.197,96.224,96.17,15.5915]
[1644707841247,5.197,96.224,96.171,37.72663229]
[1644707841448,5.197,96.227,96.17,15.5915]
[1644707841645,5.197,96.223,96.17,15.5915]
[1644707841846,5.197,96.227,96.17,15.5915]
[1644707848456,23.3372,96.228,96.17,15.5915]
[1644707851458,23.3372,96.228,96.13,51.981]
[1644707851659,7.82090296,96.227,96.16,0.25]
[1644707852062,2.62390296,96.226,96.16,0.25]
[1644707852260,5.197,96.225,96.16,0.25]
[1644707852959,5.197,96.227,96.16,0.25]
[1644707854962,5.197,96.227,96.16,15.8438]
[1644707857966,23.3372,96.228,96.16,15.8438]
[1644707859172,5.197,96.227,96.16,15.8438]
[1644707859971,103.9,96.226,96.152,0.024]
[1644707860172,5.198,96.225,96.152,0.274]
[1644707860373,5.198,96.226,96.153,0.024]
[1644707860571,5.198,96.227,96.152,0.274]
[1644707860772,5.198,96.227,96.153,0.024]
[1644707861872,103.9,96.226,96.153,0.024]
[1644707862075,103.9,96.224,96.152,0.024]
[1644707862294,2.62390296,96.227,96.151,0.024]
[1644707862295,1.46226272,96.218,96.151,0.024]
[1644707862495,1.46226272,96.218,96.15,15.5953]
[1644707862695,103.9,96.219,96.15,15.5953]
[1644707862696,1.46226272,96.216,96.151,35.92588762]
[1644707863096,5.198,96.215,96.151,35.92588762]
[1644707863297,42.17913314,96.214,96.151,35.92588762]
[1644707863796,5.198,96.213,96.151,35.92588762]
[1644707864399,1.46226272,96.208,96.151,35.92588762]
[1644707864699,1.46226272,96.209,96.151,35.92588762]
[1644707864897,1.46226272,96.209,96.15,15.5953]
[1644707865099,5.198,96.208,96.15,15.5953]
[1644707865303,6.66026272,96.208,96.15,15.5953]
[1644707865501,1.46226272,96.208,96.15,15.5953]
[1644707865802,5.198,96.207,96.15,15.5953]
[1644707866001,5.198,96.207,96.151,39.91397566]
[1644707866401,1.46226272,96.204,96.151,39.91397566]
[1644707866600,42.17913314,96.214,96.151,39.91397566]
[1644707866601,1.46226272,96.203,96.151,39.91397566]
[1644707867003,5.198,96.202,96.151,39.91397566]
[1644707867205,1.46226272,96.203,96.16,15.5938]
[1644707867402,1.46226272,96.216,96.16,15.5938]
[1644707867601,1.46226272,96.215,96.16,15.5938]
[1644707867802,23.6662,96.24,96.161,2.62390296]
[1644707867803,1.46226272,96.219,96.161,2.62390296]
[1644707868006,1.46226272,96.22,96.161,2.62390296]
[1644707868203,1.46226272,96.216,96.162,0.024]
[1644707868405,1.46226272,96.213,96.153,0.024]
[1644707868607,1.46226272,96.21,96.152,0.274]
[1644707868806,1.46226272,96.21,96.152,2.87390296]
[1644707868807,0.25,96.209,96.152,2.87390296]
[1644707869207,1.71226272,96.209,96.152,0.25]
[1644707869809,1.46226272,96.209,96.16,15.5938]
[1644707870006,1.46226272,96.216,96.16,15.5938]
[1644707870207,1.46226272,96.218,96.16,15.5938]
[1644707870408,46.58152329,96.219,96.16,15.5938]
[1644707870907,1.46226272,96.219,96.16,15.5938]
[1644707871108,1.46226272,96.22,96.16,15.5938]
[1644707871308,0.96226272,96.221,96.16,15.5938]
[1644707871908,36.15198242,96.22,96.16,15.5938]
[1644707875114,5.198,96.232,96.16,15.5938]
[1644707875315,0.25,96.233,96.16,15.5938]
[1644707875517,0.25,96.233,96.161,0.024]
[1644707875717,7.82090296,96.232,96.154,0.274]
[1644707875916,15.5976,96.23,96.154,0.25]
[1644707876216,43.88942008,96.228,96.155,0.024]
[1644707876415,10.7052526,96.227,96.153,0.024]
[1644707876615,13.32915556,96.227,96.153,0.024]
[1644707876816,15.5992,96.22,96.153,0.024]
[1644707877020,5.198,96.219,96.152,0.024]
[1644707877218,5.198,96.219,96.151,39.91397566]
[1644707877422,5.198,96.219,96.127,0.024]
[1644707877423,15.5992,96.22,96.127,0.024]
[1644707877621,22.5546,96.219,96.127,0.024]
[1644707877820,22.5546,96.219,96.13,15.5984]
[1644707878222,22.5546,96.219,96.131,0.274]
[1644707878421,22.5546,96.219,96.132,44.4042954]
[1644707878624,22.5546,96.219,96.132,47.02819836]
[1644707878821,22.5546,96.219,96.133,27.41570296]
[1644707879022,22.5546,96.219,96.134,0.024]
[1644707879222,22.5546,96.219,96.134,2.64790296]
[1644707879424,22.5546,96.219,96.14,15.5968]
[1644707879926,22.5546,96.219,96.141,2.64790296]
[1644707880124,5.198,96.218,96.141,2.64790296]
[1644707880324,5.198,96.218,96.142,2.62390296]
[1644707880523,5.198,96.218,96.143,0.024]
[1644707880924,5.198,96.218,96.144,2.62390296]
[1644707881350,5.198,96.218,96.145,0.024]
[1644707882558,5.198,96.218,96.14,15.5968]
[1644707882559,22.5546,96.219,96.141,0.024]
[1644707882954,22.5546,96.219,96.141,2.64790296]
[1644707883454,22.5546,96.219,96.141,0.024]
[1644707883653,5.198,96.218,96.134,0.024]
[1644707883854,5.198,96.218,96.142,0.024]
[1644707884062,5.198,96.218,96.135,0.024]
[1644707884856,47.84916998,96.209,96.135,0.024]
[1644707885061,47.84916998,96.209,96.136,2.62390296]
[1644707885256,47.84916998,96.209,96.137,0.024]
[1644707885657,47.84916998,96.209,96.138,2.62390296]
[1644707886861,47.84916998,96.209,96.14,15.5967]
[1644707887061,0.25,96.208,96.14,15.5967]
[1644707887263,0.25,96.208,96.141,2.62390296]
[1644707887461,47.84916998,96.209,96.141,2.62390296]
[1644707889660,5.448,96.208,96.141,2.62390296]
[1644707890963,0.25,96.208,96.142,5.198]
[1644707892165,5.198,96.207,96.141,2.62390296]
[1644707893472,0.25,96.208,96.142,5.198]
[1644707895269,5.198,96.207,96.142,5.198]
[1644707896670,5.198,96.207,96.141,2.62390296]
[1644707897772,5.198,96.218,96.15,15.5949]
[1644707897974,5.198,96.233,96.151,5.198]
[1644707898170,5.197,96.236,96.152,24.216]
[1644707898371,5.197,96.239,96.152,26.86390296]
[1644707898675,46.3450824,96.234,96.154,48.08417913]
[1644707898871,46.3450824,96.234,96.155,5.221]
[1644707899070,5.197,96.233,96.156,0.024]
[1644707899270,0.25,96.232,96.156,2.64790296]
[1644707899471,0.25,96.232,96.157,2.62390296]
[1644707899671,0.25,96.232,96.158,0.024]
[1644707899872,0.25,96.232,96.16,15.5938]
[1644707900382,5.197,96.233,96.161,2.62390296]
[1644707900575,5.197,96.258,96.161,2.62390296]
[1644707900773,5.42171826,96.257,96.161,106.52390296]
[1644707900976,5.196,96.258,96.162,0.024]
[1644707901173,5.196,96.262,96.17,15.5919]
[1644707901374,44.8345416,96.261,96.172,103.9]
[1644707901573,39.41298404,96.261,96.172,103.9]
[1644707901975,0.25,96.26,96.173,2.62390296]
[1644707902174,0.25,96.26,96.174,5.196]
[1644707902376,0.25,96.26,96.175,103.9]
[1644707902575,0.25,96.26,96.176,5.196]
[1644707902776,5.196,96.259,96.19,15.5883]
[1644707902977,5.196,96.259,96.191,40.19433053]
[1644707903880,5.196,96.259,96.2,15.5877]
[1644707904082,7.31339483,96.357,96.2,15.5877]
[1644707904083,2.93113759,96.284,96.201,103.9]
[1644707904282,5.41586133,96.285,96.202,48.3221]
[1644707904481,2.93113759,96.299,96.202,50.94600296]
[1644707904680,5.40770546,96.305,96.203,103.9]
[1644707904879,36.77805779,96.304,96.203,106.52390296]
[1644707905082,5.194,96.303,96.204,2.62390296]
[1644707905280,5.194,96.303,96.205,5.194]
[1644707905480,5.40770546,96.302,96.206,36.40925473]
[1644707905681,5.194,96.303,96.207,5.194]
[1644707905883,5.194,96.303,96.22,15.5847]
[1644707906086,5.194,96.303,96.221,66.2320367]
[1644707906279,5.194,96.303,96.221,61.0380367]
[1644707906280,7.81790296,96.303,96.221,61.0380367]
[1644707906480,5.40687594,96.302,96.221,61.0380367]
[1644707906681,5.194,96.301,96.221,61.0380367]
[1644707907082,5.194,96.302,96.221,61.0380367]
[1644707907296,0.25,96.3,96.221,61.0380367]
[1644707907498,5.194,96.299,96.221,61.0380367]
[1644707908300,5.40102169,96.298,96.221,61.0380367]
[1644707908508,5.194,96.297,96.221,61.0380367]
[1644707908700,5.40102169,96.296,96.221,61.0380367]
[1644707909101,0.25,96.3,96.221,61.0380367]
[1644707909102,5.194,96.295,96.221,61.0380367]
[1644707909301,5.194,96.299,96.221,61.0380367]
[1644707909501,5.194,96.297,96.221,61.0380367]
[1644707909701,5.39941394,96.298,96.221,61.0380367]
[1644707909902,5.194,96.297,96.221,61.0380367]
[1644707910302,5.39941394,96.296,96.221,61.0380367]
[1644707910704,5.39941394,96.298,96.221,61.0380367]
[1644707910906,5.194,96.297,96.221,61.0380367]
[1644707911307,15.8364,96.3,96.221,61.0380367]
[1644707911308,5.3985672,96.296,96.221,61.0380367]
[1644707911506,5.194,96.295,96.221,61.0380367]
[1644707911707,10.5925672,96.298,96.221,61.0380367]
[1644707911905,5.194,96.298,96.221,61.0380367]
[1644707912106,44.06477317,96.289,96.221,61.0380367]
[1644707912408,5.194,96.288,96.221,61.0380367]
[1644707914910,44.06477317,96.289,96.221,61.0380367]
[1644707916712,0.25,96.3,96.222,2.62390296]
[1644707917212,5.194,96.312,96.222,106.52390296]
[1644707917711,69.3926957,96.306,96.223,2.62390296]
[1644707918715,0.25,96.305,96.223,2.62390296]
[1644707918914,0.25,96.305,96.23,15.5829]
[1644707919213,0.25,96.305,96.231,2.62390296]
[1644707919514,5.192,96.304,96.231,2.62390296]
[1644707920113,5.192,96.304,96.221,61.0380367]
[1644707920114,15.5863,96.3,96.221,61.0380367]
[1644707920314,5.194,96.299,96.221,61.0380367]
[1644707921320,5.3982694,96.298,96.221,61.0380367]
[1644707921517,5.194,96.297,96.221,61.0380367]
[1644707921917,5.194,96.299,96.221,61.0380367]
[1644707922317,5.39893723,96.298,96.221,61.0380367]
[1644707922518,5.194,96.297,96.221,61.0380367]
[1644707923122,5.39893723,96.296,96.221,61.0380367]
[1644707923521,5.194,96.295,96.221,61.0380367]
[1644707923720,5.194,96.298,96.221,61.0380367]
[1644707923924,5.40119292,96.297,96.221,61.0380367]
[1644707924122,5.194,96.296,96.221,61.0380367]
[1644707924521,5.40119292,96.295,96.221,61.0380367]
[1644707924921,5.194,96.294,96.221,61.0380367]
[1644707925121,5.194,96.294,96.19,51.951]
[1644707925122,15.5881,96.29,96.19,18.21230296]
[1644707925322,14.99,96.28,96.19,15.5884]
[1644707925523,30.36439292,96.279,96.173,22.6975]
[1644707925823,5.40119292,96.278,96.173,22.6975]
[1644707926043,5.40119292,96.278,96.174,44.32980187]
[1644707926044,2.93113759,96.275,96.174,44.32980187]
[1644707926225,5.196,96.274,96.174,68.49660187]
[1644707926426,14.99,96.26,96.175,2.62390296]
[1644707926624,24.7715,96.259,96.175,2.62390296]
[1644707926824,24.7715,96.259,96.18,15.5913]
[1644707927228,24.7715,96.259,96.181,106.52390296]
[1644707927626,24.7715,96.259,96.182,2.62390296]
[1644707928729,24.7715,96.259,96.19,15.5895]
[1644707929127,24.7715,96.259,96.191,40.77347351]
[1644707929530,24.7715,96.259,96.192,2.62390296]
[1644707930936,5.196,96.258,96.192,2.62390296]
[1644707931439,5.196,96.258,96.191,38.14957055]
[1644707933235,5.196,96.258,96.192,2.62390296]
[1644707933434,24.7715,96.259,96.192,2.62390296]
[1644707935357,24.7715,96.259,96.191,38.14957055]
[1644707935558,103.9,96.257,96.18,2.62390296]
[1644707935853,5.196,96.256,96.165,0.024]
[1644707936054,5.196,96.256,96.157,2.62390296]
[1644707936055,2.93113759,96.253,96.171,0.024]
[1644707936259,14.99,96.24,96.158,0.024]
[1644707936458,15.5979,96.23,96.14,59.83235665]
[1644707936757,15.5979,96.23,96.141,0.274]
[1644707936954,5.198,96.229,96.141,0.274]
[1644707938856,5.198,96.229,96.141,2.89790296]
[1644707944158,5.198,96.229,96.15,15.5961]
[1644707944358,38.49385735,96.238,96.151,0.024]
[1644707944564,38.49385735,96.238,96.151,25.36840296]
[1644707944761,38.49385735,96.238,96.152,2.62390296]
[1644707944961,38.49385735,96.238,96.152,2.64790296]
[1644707945163,38.49385735,96.238,96.16,15.594]
[1644707945360,38.49385735,96.238,96.161,45.14021677]
[1644707945561,43.69085735,96.238,96.162,0.024]
[1644707946063,43.69085735,96.238,96.162,2.64790296]
[1644707946262,43.69085735,96.238,96.17,15.5927]
[1644707946462,38.49385735,96.238,96.17,15.5927]
[1644707946663,38.49385735,96.238,96.171,2.62390296]
[1644707947066,22.978,96.239,96.171,2.62390296]
[1644707947763,22.978,96.239,96.18,15.5911]
[1644707948164,35.99058268,96.238,96.181,41.52366432]
[1644707948563,35.99058268,96.238,96.182,2.62390296]
[1644707950365,22.978,96.239,96.182,2.62390296]
[1644707950569,5.197,96.255,96.182,115.13390296]
[1644707950768,2.9566948,96.275,96.19,15.5892]
[1644707950970,0.02555721,96.274,96.191,24.049]
[1644707951166,0.02555721,96.274,96.192,103.9]
[1644707951368,40.25253301,96.274,96.192,103.9]
[1644707951569,5.40890213,96.273,96.192,106.52390296]
[1644707951766,5.43445934,96.273,96.193,7.81890296]
[1644707952168,5.43445934,96.273,96.194,2.62390296]
[1644707952366,0.25,96.272,96.195,5.195]
[1644707952567,5.40890213,96.271,96.196,42.94369728]
[1644707952870,5.43445934,96.271,96.197,5.195]
[1644707953067,5.43445934,96.271,96.2,15.5882]
[1644707953366,10.60390213,96.271,96.201,5.195]
[1644707953567,5.195,96.271,96.201,5.195]
[1644707954167,5.41407724,96.27,96.201,5.195]
[1644707954365,5.195,96.269,96.2,15.5882]
[1644707954869,103.9,96.27,96.198,2.62390296]
[1644707955068,10.60924608,96.268,96.187,2.62390296]
[1644707955266,5.41424608,96.268,96.18,15.5902]
[1644707955467,2.93113759,96.265,96.18,15.5902]
[1644707955668,2.93113759,96.262,96.18,15.5902]
[1644707955866,28.5313,96.264,96.172,0.024]
[1644707955867,2.93113759,96.259,96.172,0.024]
[1644707956067,2.93113759,96.259,96.17,0.024]
[1644707956068,2.93113759,96.249,96.17,0.024]
[1644707956268,2.93113759,96.248,96.167,0.274]
[1644707956474,8.12813759,96.248,96.168,0.024]
[1644707956668,2.93113759,96.247,96.168,0.024]
[1644707956868,36.29966413,96.245,96.168,0.024]
[1644707957070,5.197,96.244,96.168,0.024]
[1644707957370,14.99,96.24,96.168,0.024]
[1644707957568,14.99,96.24,96.167,0.25]
[1644707958570,17.61390296,96.24,96.167,0.25]
[1644707958768,33.20970296,96.24,96.167,0.25]
[1644707958971,10.61059629,96.239,96.167,0.25]
[1644707959168,5.41359629,96.238,96.167,0.25]
[1644707959368,5.197,96.237,96.167,0.25]
[1644707959570,5.41359629,96.236,96.154,0.024]
[1644707959770,5.197,96.236,96.154,0.024]
[1644707959971,5.41359629,96.235,96.154,0.024]
[1644707960169,14.99,96.23,96.154,0.024]
[1644707960378,34.47935918,96.229,96.154,0.024]
[1644707960570,24.217,96.228,96.154,0.024]
[1644707960770,5.197,96.227,96.154,0.024]
[1644707960969,5.197,96.227,96.154,0.274]
[1644707964073,24.217,96.228,96.154,0.274]
[1644707964271,5.197,96.227,96.154,0.274]
[1644707967276,24.217,96.228,96.154,23.0841]
[1644707968376,5.197,96.227,96.154,23.0841]
[1644707968976,5.197,96.227,96.16,15.5945]
[1644707969476,24.217,96.228,96.16,15.5945]
[1644707969678,5.197,96.227,96.16,15.5945]
[1644707970286,24.217,96.228,96.16,15.5945]
[1644707970985,103.9,96.227,96.16,15.5945]
[1644707971180,5.197,96.226,96.155,0.024]
[1644707971379,5.197,96.226,96.14,15.597]
[1644707971580,5.40999358,96.225,96.141,0.024]
[1644707971782,0.25,96.224,96.141,0.024]
[1644707971982,5.198,96.223,96.141,47.00679684]
[1644707972182,5.198,96.223,96.141,46.98279684]
[1644707972381,0.25,96.224,96.15,15.5961]
[1644707972584,0.25,96.224,96.151,22.7526]
[1644707972786,0.25,96.224,96.151,23.0266]
[1644707972787,5.198,96.223,96.151,23.0266]
[1644707972985,0.25,96.224,96.151,23.0026]
[1644707973183,0.25,96.224,96.151,23.0266]
[1644707974484,5.198,96.223,96.151,23.0266]
[1644707974686,5.198,96.223,96.151,23.0026]
[1644707977310,0.25,96.224,96.151,23.0026]
[1644707977509,0.25,96.224,96.151,22.7766]
[1644707977710,0.25,96.224,96.152,0.25]
[1644707977913,0.25,96.224,96.151,22.7766]
[1644707978108,103.9,96.222,96.151,0.024]
[1644707978310,0.25,96.224,96.142,0.024]
[1644707978311,103.9,96.219,96.142,0.024]
[1644707978509,103.9,96.219,96.131,0.024]
[1644707978910,5.40793958,96.218,96.131,0.024]
[1644707979111,103.9,96.219,96.131,38.35516447]
[1644707979310,103.9,96.219,96.132,0.024]
[1644707979514,103.9,96.219,96.132,0.274]
[1644707979711,30.5892,96.22,96.14,15.5976]
[1644707979911,30.5892,96.22,96.141,0.024]
[1644707980110,14.99,96.22,96.141,0.024]
[1644707980714,5.198,96.219,96.142,0.024]
[1644707980913,5.40796131,96.218,96.142,0.024]
[1644707981113,28.8708,96.217,96.133,0.024]
[1644707981713,5.41002348,96.216,96.133,0.024]
[1644707983019,5.198,96.215,96.133,0.024]
[1644707983217,42.82239252,96.214,96.133,0.024]
[1644707983417,14.99,96.21,96.133,0.024]
[1644707983618,5.199,96.209,96.133,0.024]
[1644707984818,5.41905991,96.208,96.133,0.024]
[1644707985018,14.99,96.21,96.133,0.024]
[1644707986221,0.25,96.209,96.133,0.024]
[1644707988426,0.25,96.209,96.133,38.47623523]
[1644707988625,5.199,96.208,96.134,0.024]
[1644707989925,42.82239252,96.214,96.14,15.5977]
[1644707990227,23.6728,96.217,96.141,2.62390296]
[1644707990627,23.6728,96.217,96.142,0.024]
[1644707991026,23.6728,96.217,96.143,2.62390296]
[1644707991226,38.29879598,96.216,96.144,23.907]
[1644707991428,38.29879598,96.216,96.144,23.931]
[1644707991627,1.47097299,96.211,96.145,2.62390296]
[1644707991828,1.47097299,96.211,96.16,15.5926]
[1644707992027,1.47097299,96.212,96.16,15.5926]
[1644707992836,1.47097299,96.213,96.161,5.198]
[1644707993027,1.47097299,96.213,96.17,15.5928]
[1644707993432,1.47097299,96.214,96.17,15.5928]
[1644707993728,1.47097299,96.214,96.171,5.197]
[1644707993932,1.47097299,96.217,96.171,5.197]
[1644707994130,1.47097299,96.225,96.164,103.9]
[1644707994329,1.47097299,96.226,96.18,15.5908]
[1644707994531,1.47097299,96.227,96.18,15.5908]
[1644707994732,1.47097299,96.227,96.181,5.196]
[1644707995134,1.47097299,96.228,96.181,5.196]
[1644707996132,1.47097299,96.223,96.181,5.196]
[1644707996730,1.47097299,96.225,96.181,5.196]
[1644707996932,1.47097299,96.226,96.181,5.196]
[1644707997531,1.47097299,96.225,96.18,15.5908]
[1644707998733,1.47097299,96.224,96.18,15.5908]
[1644707999134,1.47097299,96.225,96.18,15.5908]
[1644707999335,1.47097299,96.226,96.18,15.5908]
[1644707999537,1.47097299,96.227,96.18,15.5908]
[1644707999737,6.66797299,96.226,96.18,15.5908]
[1644707999936,1.47097299,96.226,96.18,15.5908]
[1644708001236,1.47097299,96.225,96.18,15.5908]
[1644708001835,1.47097299,96.226,96.18,15.5908]
[1644708002237,35.6951493,96.23,96.18,15.5908]
[1644708002438,34.22417631,96.23,96.18,15.5908]
[1644708002737,1.47097299,96.229,96.18,15.5908]
[1644708003837,1.47097299,96.226,96.18,15.5908]
[1644708004438,0.25,96.225,96.18,15.5908]
[1644708004638,1.47097299,96.223,96.18,15.5908]
[1644708005840,1.47097299,96.22,96.164,0.024]
[1644708006041,1.47097299,96.22,96.163,23.5246]
[1644708006240,5.197,96.219,96.163,23.5246]
[1644708006442,1.47097299,96.215,96.163,23.5246]
[1644708006839,1.47097299,96.211,96.143,0.024]
[1644708007046,25.97157299,96.21,96.148,0.024]
[1644708007339,1.47097299,96.199,96.134,0.024]
[1644708007539,5.199,96.198,96.128,0.024]
[1644708007739,1.47097299,96.196,96.121,0.024]
[1644708007939,1.47097299,96.196,96.124,39.45889156]
[1644708008140,1.47097299,96.196,96.14,15.5971]
[1644708008341,5.199,96.195,96.143,0.25]
[1644708009641,6.66997299,96.195,96.143,0.25]
[1644708009841,1.47097299,96.194,96.143,0.25]
[1644708010140,5.199,96.193,96.143,0.25]
[1644708010742,1.47097299,96.194,96.143,0.25]
[1644708010941,6.66997299,96.194,96.143,0.25]
[1644708011641,5.199,96.194,96.143,0.25]
[1644708012244,5.199,96.194,96.125,0.024]
[1644708012452,1.47097299,96.186,96.121,0.024]
[1644708012646,1.47097299,96.186,96.12,15.5999]
[1644708012843,23.2229,96.193,96.12,15.5999]
[1644708012844,1.47097299,96.182,96.12,15.5999]
[1644708013043,1.47097299,96.181,96.12,15.5999]
[1644708013543,1.47097299,96.184,96.12,15.5999]
[1644708013746,1.47097299,96.184,96.121,0.25]
[1644708013943,1.47097299,96.185,96.121,0.25]
[1644708015050,1.47097299,96.186,96.121,0.25]
[1644708016153,1.47097299,96.188,96.121,0.25]
[1644708017354,1.47097299,96.189,96.121,0.25]
[1644708017553,1.47097299,96.19,96.121,0.25]
[1644708019454,1.47097299,96.19,96.117,0.024]
[1644708019652,1.47097299,96.19,96.116,24.652]
[1644708019653,1.47097299,96.188,96.116,24.652]
[1644708019854,1.47097299,96.183,96.116,24.676]
[1644708020054,1.47097299,96.183,96.116,24.652]
[1644708020253,1.47097299,96.187,96.116,24.652]